[Event "*** Titled Tuesday Blitz"]
[Site "Chess.com"]
[Date "2019.07.02"]
[Round "2"]
[White "Keithonsky"]
[Black "varacalli"]
[Result "1-0"]
[WhiteElo "2455"]
[BlackElo "2413"]
[TimeControl "180+2"]
[EndTime "13:23:34 PDT"]
[Termination "Keithonsky won by checkmate"]

1. d4 {[%clk 0:02:59.5]} 1... Nf6 {[%clk 0:03:01]} 2. c4 {[%clk 0:03:00.8]} 2...
g6 {[%clk 0:03:02.1]} 3. Nc3 {[%clk 0:03:01.9]} 3... Bg7 {[%clk 0:03:03.5]} 4.
e4 {[%clk 0:03:03.2]} 4... d6 {[%clk 0:03:05]} 5. Bd3 {[%clk 0:03:04.8]} 5...
O-O {[%clk 0:03:05.8]} 6. Nge2 {[%clk 0:03:06.4]} 6... c6 {[%clk 0:03:03.8]} 7.
O-O {[%clk 0:03:06.8]} 7... a6 {[%clk 0:03:05.2]} 8. a4 {[%clk 0:03:06.8]} 8...
a5 {[%clk 0:03:06.7]} 9. f3 {[%clk 0:03:07.9]} 9... e5 {[%clk 0:03:07.5]} 10.
Be3 {[%clk 0:03:06.7]} 10... Na6 {[%clk 0:03:08.5]} 11. Rc1 {[%clk 0:03:06.8]}
11... exd4 {[%clk 0:03:01.1]} 12. Nxd4 {[%clk 0:03:07.2]} 12... Qe7 {[%clk
0:03:00.5]} 13. Re1 {[%clk 0:03:07.6]} 13... Re8 {[%clk 0:03:00.9]} 14. Bf1
{[%clk 0:02:58.7]} 14... Nd7 {[%clk 0:03:01.4]} 15. Bf2 {[%clk 0:02:57.5]} 15...
h5 {[%clk 0:03:00.5]} 16. Qd2 {[%clk 0:02:53.4]} 16... Ndc5 {[%clk 0:03:00.6]}
17. Rcd1 {[%clk 0:02:54.1]} 17... Bd7 {[%clk 0:02:46.3]} 18. Nde2 {[%clk
0:02:49.9]} 18... Be6 {[%clk 0:02:38.9]} 19. Nf4 {[%clk 0:02:47.7]} 19... Rad8
{[%clk 0:02:37.3]} 20. Nxe6 {[%clk 0:02:43.8]} 20... Qxe6 {[%clk 0:02:38.5]} 21.
Qc2 {[%clk 0:02:40.3]} 21... Nb4 {[%clk 0:02:35.5]} 22. Qb1 {[%clk 0:02:22.6]}
22... Be5 {[%clk 0:02:22.2]} 23. Bh4 {[%clk 0:02:15.1]} 23... Rd7 {[%clk
0:02:19.1]} 24. Bf2 {[%clk 0:02:14.1]} 24... Red8 {[%clk 0:02:13.2]} 25. g3
{[%clk 0:02:14.9]} 25... Bg7 {[%clk 0:02:08.3]} 26. f4 {[%clk 0:02:11]} 26...
Re8 {[%clk 0:02:03.4]} 27. f5 {[%clk 0:02:10.4]} 27... Qe7 {[%clk 0:02:01.2]}
28. fxg6 {[%clk 0:02:09.9]} 28... fxg6 {[%clk 0:02:01.9]} 29. e5 {[%clk
0:02:07.4]} 29... Bxe5 {[%clk 0:01:43.7]} 30. Qxg6+ {[%clk 0:02:07.2]} 30... Kh8
{[%clk 0:01:43.3]} 31. Qxh5+ {[%clk 0:01:57.7]} 31... Kg8 {[%clk 0:01:43.3]} 32.
Qg6+ {[%clk 0:01:40.8]} 32... Kh8 {[%clk 0:01:42.1]} 33. Rd4 {[%clk 0:01:40.2]}
33... Rg8 {[%clk 0:01:16.8]} 34. Qf5 {[%clk 0:00:44.4]} 34... Qh7 {[%clk
0:01:14.6]} 35. Rxe5 {[%clk 0:00:38.9]} 35... dxe5 {[%clk 0:01:07]} 36. Qxe5+
{[%clk 0:00:39.2]} 36... Rdg7 {[%clk 0:01:04.9]} 37. Qxc5 {[%clk 0:00:39.5]}
37... Rg6 {[%clk 0:01:00.8]} 38. Qe5+ {[%clk 0:00:39.5]} 38... Qg7 {[%clk
0:01:01.4]} 39. Rh4+ {[%clk 0:00:40.2]} 39... Rh6 {[%clk 0:00:59.5]} 40. Rxh6#
{[%clk 0:00:40.9]} 1-0

[Event "*** Titled Tuesday Blitz"]
[Site "Chess.com"]
[Date "2019.07.02"]
[Round "2"]
[White "VishnuPrasanna"]
[Black "KaterynaLagno"]
[Result "1-0"]
[WhiteElo "2809"]
[BlackElo "2666"]
[TimeControl "180+2"]
[EndTime "13:23:37 PDT"]
[Termination "VishnuPrasanna won by resignation"]

1. d4 {[%clk 0:03:01.9]} 1... Nf6 {[%clk 0:03:00.5]} 2. c4 {[%clk 0:03:01.8]}
2... g6 {[%clk 0:03:02.1]} 3. Nf3 {[%clk 0:03:03.1]} 3... Bg7 {[%clk 0:03:02.5]}
4. g3 {[%clk 0:03:04.4]} 4... O-O {[%clk 0:03:03.1]} 5. Bg2 {[%clk 0:03:06]}
5... d5 {[%clk 0:03:04.2]} 6. O-O {[%clk 0:03:06.9]} 6... dxc4 {[%clk
0:03:03.8]} 7. Na3 {[%clk 0:03:07.3]} 7... c5 {[%clk 0:03:03.2]} 8. Nxc4 {[%clk
0:03:05.9]} 8... cxd4 {[%clk 0:03:01.2]} 9. Nxd4 {[%clk 0:03:06.8]} 9... Qc7
{[%clk 0:02:49.7]} 10. Qb3 {[%clk 0:03:06.9]} 10... Nbd7 {[%clk 0:02:46.8]} 11.
Bf4 {[%clk 0:03:04]} 11... e5 {[%clk 0:02:45]} 12. Nb5 {[%clk 0:03:05.3]} 12...
Qb8 {[%clk 0:02:43.7]} 13. Be3 {[%clk 0:03:03.2]} 13... Ng4 {[%clk 0:02:19.1]}
14. Bd2 {[%clk 0:03:03.6]} 14... Nc5 {[%clk 0:02:20.2]} 15. Qa3 {[%clk
0:03:04.1]} 15... Ne6 {[%clk 0:02:20.3]} 16. Bb4 {[%clk 0:03:01.3]} 16... Bd7
{[%clk 0:02:19.7]} 17. Nc3 {[%clk 0:02:18.3]} 17... Nd4 {[%clk 0:01:59.8]} 18.
Rac1 {[%clk 0:02:18.6]} 18... a5 {[%clk 0:01:48.5]} 19. Bd6 {[%clk 0:02:18.9]}
19... Qa7 {[%clk 0:01:47.1]} 20. Bc5 {[%clk 0:02:17.3]} 20... Qa6 {[%clk
0:01:46.2]} 21. Nb6 {[%clk 0:01:43.8]} 21... Rad8 {[%clk 0:01:31.8]} 22. Nxd7
{[%clk 0:01:33.1]} 22... Rxd7 {[%clk 0:01:33.7]} 23. Bh3 {[%clk 0:01:31.5]}
23... h5 {[%clk 0:01:23.4]} 24. f3 {[%clk 0:01:22.5]} 24... Nxe2+ {[%clk
0:00:25.1]} 25. Nxe2 {[%clk 0:01:22.9]} 25... Qxe2 {[%clk 0:00:27]} 26. fxg4
{[%clk 0:01:24.1]} 26... hxg4 {[%clk 0:00:26.3]} 27. Bg2 {[%clk 0:01:24.4]}
27... Rfd8 {[%clk 0:00:18.2]} 28. Rf2 {[%clk 0:01:11.5]} 28... Rd1+ {[%clk
0:00:19]} 29. Rxd1 {[%clk 0:01:12.8]} 29... Rxd1+ {[%clk 0:00:18.4]} 30. Bf1
{[%clk 0:01:14.3]} 30... Qc4 {[%clk 0:00:12]} 31. Be3 {[%clk 0:01:11]} 31... Bf8
{[%clk 0:00:11.7]} 32. Qb3 {[%clk 0:01:09.4]} 32... Qxb3 {[%clk 0:00:11]} 33.
axb3 {[%clk 0:01:11.3]} 33... Bb4 {[%clk 0:00:10.3]} 34. Kg2 {[%clk 0:01:11.3]}
34... f5 {[%clk 0:00:11.5]} 35. Rc2 {[%clk 0:01:10.2]} 35... e4 {[%clk
0:00:10.2]} 36. Rc7 {[%clk 0:01:08.5]} 36... Bd2 {[%clk 0:00:07]} 37. Bc4+
{[%clk 0:01:08]} 37... Kf8 {[%clk 0:00:07.3]} 38. Rd7 {[%clk 0:01:09.3]} 38...
Bxe3 {[%clk 0:00:04.2]} 39. Rxd1 {[%clk 0:01:09.8]} 1-0

[Event "*** Titled Tuesday Blitz"]
[Site "Chess.com"]
[Date "2019.07.02"]
[Round "2"]
[White "MasterKroket"]
[Black "Amirreza_p"]
[Result "0-1"]
[WhiteElo "2374"]
[BlackElo "2824"]
[TimeControl "180+2"]
[EndTime "13:23:37 PDT"]
[Termination "Amirreza_p won by resignation"]

1. d4 {[%clk 0:03:01.9]} 1... d5 {[%clk 0:03:00.8]} 2. c4 {[%clk 0:03:03.2]}
2... c6 {[%clk 0:03:02.2]} 3. Nf3 {[%clk 0:03:03.9]} 3... Nf6 {[%clk 0:03:03.5]}
4. Nc3 {[%clk 0:03:05.4]} 4... e6 {[%clk 0:03:04.7]} 5. Bg5 {[%clk 0:03:06]}
5... dxc4 {[%clk 0:03:05.7]} 6. e4 {[%clk 0:03:06.8]} 6... b5 {[%clk 0:03:07.1]}
7. e5 {[%clk 0:03:08]} 7... h6 {[%clk 0:03:08.5]} 8. Bh4 {[%clk 0:03:09]} 8...
g5 {[%clk 0:03:10.1]} 9. Nxg5 {[%clk 0:03:10.4]} 9... hxg5 {[%clk 0:03:12]} 10.
Bxg5 {[%clk 0:03:11.4]} 10... Nbd7 {[%clk 0:03:13.6]} 11. exf6 {[%clk
0:03:12.3]} 11... Qa5 {[%clk 0:03:15.1]} 12. Be2 {[%clk 0:02:53.5]} 12... Bb7
{[%clk 0:03:12.4]} 13. O-O {[%clk 0:02:51.8]} 13... O-O-O {[%clk 0:03:13]} 14.
Bf3 {[%clk 0:02:48.6]} 14... Ne5 {[%clk 0:03:02.6]} 15. dxe5 {[%clk 0:02:39.2]}
15... Rxd1 {[%clk 0:03:01.3]} 16. Rfxd1 {[%clk 0:02:39.1]} 16... b4 {[%clk
0:03:02.6]} 17. Ne4 {[%clk 0:02:25.5]} 17... Qxe5 {[%clk 0:03:02.9]} 18. g3
{[%clk 0:02:12.1]} 18... c5 {[%clk 0:03:01.2]} 19. Bf4 {[%clk 0:02:12.5]} 19...
Qf5 {[%clk 0:03:01.7]} 20. Nd6+ {[%clk 0:01:53.9]} 20... Bxd6 {[%clk 0:02:54.9]}
21. Bxb7+ {[%clk 0:01:54.9]} 21... Kxb7 {[%clk 0:02:55.5]} 22. Rxd6 {[%clk
0:01:56.5]} 22... Qxf6 {[%clk 0:02:53.2]} 23. Rd7+ {[%clk 0:01:54.9]} 23... Ka6
{[%clk 0:02:45.4]} 24. Rad1 {[%clk 0:01:48.9]} 24... Ra8 {[%clk 0:02:23.3]} 25.
R1d6+ {[%clk 0:01:32.4]} 25... Ka5 {[%clk 0:02:06.6]} 26. Rc7 {[%clk 0:01:25.6]}
26... Qf5 {[%clk 0:01:50]} 27. Be3 {[%clk 0:01:21.3]} 27... Qb1+ {[%clk
0:01:11.8]} 28. Kg2 {[%clk 0:01:21.9]} 28... Qe4+ {[%clk 0:01:13.3]} 29. Kg1
{[%clk 0:01:22.9]} 29... a6 {[%clk 0:00:52.9]} 30. Rxc5+ {[%clk 0:01:00]} 30...
Ka4 {[%clk 0:00:53.8]} 31. Rd4 {[%clk 0:00:56.4]} 31... Qb1+ {[%clk 0:00:54.3]}
32. Kg2 {[%clk 0:00:57.4]} 32... Qxa2 {[%clk 0:00:53.9]} 33. Rdxc4 {[%clk
0:00:44.9]} 33... Qxb2 {[%clk 0:00:52.1]} 34. h4 {[%clk 0:00:31.9]} 34... a5
{[%clk 0:00:49.6]} 35. Rc2 {[%clk 0:00:28.3]} 35... Qb1 {[%clk 0:00:49.5]} 36.
Bc1 {[%clk 0:00:22.3]} 36... Kb3 {[%clk 0:00:48.1]} 37. h5 {[%clk 0:00:15.8]}
37... Qxc2 {[%clk 0:00:48.2]} 0-1

[Event "*** Titled Tuesday Blitz"]
[Site "Chess.com"]
[Date "2019.07.02"]
[Round "2"]
[White "DanielRensch"]
[Black "doons21"]
[Result "0-1"]
[WhiteElo "2421"]
[BlackElo "2447"]
[TimeControl "180+2"]
[EndTime "13:23:41 PDT"]
[Termination "doons21 won by resignation"]

1. e4 {[%clk 0:03:01.9]} 1... e6 {[%clk 0:03:00.7]} 2. d4 {[%clk 0:03:02.8]}
2... d5 {[%clk 0:03:02.2]} 3. Nc3 {[%clk 0:03:04.2]} 3... Bb4 {[%clk 0:03:03.4]}
4. e5 {[%clk 0:03:05.2]} 4... Ne7 {[%clk 0:03:04.9]} 5. a3 {[%clk 0:03:05.5]}
5... Bxc3+ {[%clk 0:03:06.1]} 6. bxc3 {[%clk 0:03:07.4]} 6... c5 {[%clk
0:03:07.7]} 7. Qg4 {[%clk 0:03:08]} 7... Kf8 {[%clk 0:03:08.9]} 8. a4 {[%clk
0:03:07]} 8... Qc7 {[%clk 0:03:08.6]} 9. Ne2 {[%clk 0:02:54.5]} 9... b6 {[%clk
0:03:09.3]} 10. h4 {[%clk 0:02:52.7]} 10... Ba6 {[%clk 0:03:09.7]} 11. Rh3
{[%clk 0:02:51.7]} 11... h5 {[%clk 0:02:35.6]} 12. Qf4 {[%clk 0:02:47.1]} 12...
Nf5 {[%clk 0:02:32]} 13. Bd2 {[%clk 0:02:34.5]} 13... Nc6 {[%clk 0:02:22.2]} 14.
f3 {[%clk 0:02:23.4]} 14... Nce7 {[%clk 0:02:19.9]} 15. g4 {[%clk 0:02:19.2]}
15... hxg4 {[%clk 0:02:12.5]} 16. fxg4 {[%clk 0:02:18.1]} 16... Nxh4 {[%clk
0:02:08.1]} 17. Qf2 {[%clk 0:02:03.4]} 17... Bxe2 {[%clk 0:01:49]} 18. Bxe2
{[%clk 0:01:41.2]} 18... Nhg6 {[%clk 0:01:44.4]} 19. Rxh8+ {[%clk 0:01:40.7]}
19... Nxh8 {[%clk 0:01:45.2]} 20. Bd3 {[%clk 0:01:36]} 20... Nhg6 {[%clk
0:01:11.1]} 21. a5 {[%clk 0:01:08]} 21... c4 {[%clk 0:01:01.6]} 22. Bf1 {[%clk
0:01:05.7]} 22... bxa5 {[%clk 0:01:02]} 23. Bg5 {[%clk 0:01:04.7]} 23... Rb8
{[%clk 0:00:58.1]} 24. Kd2 {[%clk 0:01:04.1]} 24... Rb2 {[%clk 0:00:36.3]} 25.
Be2 {[%clk 0:00:55]} 25... Qb7 {[%clk 0:00:28.6]} 26. Bd1 {[%clk 0:00:54.6]}
26... Nc6 {[%clk 0:00:27.7]} 27. Kc1 {[%clk 0:00:47.4]} 27... a4 {[%clk
0:00:26]} 28. Rxa4 {[%clk 0:00:44.3]} 28... Rb1+ {[%clk 0:00:27.2]} 29. Kd2
{[%clk 0:00:44.1]} 29... Qb2 {[%clk 0:00:27.9]} 30. Ke2 {[%clk 0:00:30.1]} 30...
Qb5 {[%clk 0:00:25.1]} 31. Ra2 {[%clk 0:00:26.5]} 31... Rxd1 {[%clk 0:00:25.4]}
32. Kxd1 {[%clk 0:00:24.7]} 32... Qb1+ {[%clk 0:00:26.7]} 33. Bc1 {[%clk
0:00:25.8]} 33... Qxa2 {[%clk 0:00:28.2]} 0-1

[Event "*** Titled Tuesday Blitz"]
[Site "Chess.com"]
[Date "2019.07.02"]
[Round "2"]
[White "PabloZarnicki"]
[Black "OparinGrigoriy"]
[Result "0-1"]
[WhiteElo "2610"]
[BlackElo "2976"]
[TimeControl "180+2"]
[EndTime "13:23:44 PDT"]
[Termination "OparinGrigoriy won on time"]

1. e4 {[%clk 0:03:01.9]} 1... e5 {[%clk 0:03:00.8]} 2. Nf3 {[%clk 0:03:02.4]}
2... Nc6 {[%clk 0:03:02.7]} 3. Nc3 {[%clk 0:03:03.6]} 3... Nf6 {[%clk
0:03:03.6]} 4. d4 {[%clk 0:03:04.8]} 4... exd4 {[%clk 0:03:05.5]} 5. Nxd4 {[%clk
0:03:06.3]} 5... Bb4 {[%clk 0:03:07]} 6. Nxc6 {[%clk 0:03:07.8]} 6... bxc6
{[%clk 0:03:08.9]} 7. Bd3 {[%clk 0:03:09]} 7... O-O {[%clk 0:03:10.3]} 8. O-O
{[%clk 0:03:09.4]} 8... d5 {[%clk 0:03:11.9]} 9. exd5 {[%clk 0:03:10.5]} 9...
Bg4 {[%clk 0:03:13.5]} 10. f3 {[%clk 0:03:11.1]} 10... Bh5 {[%clk 0:03:14.7]}
11. Bg5 {[%clk 0:03:10.3]} 11... cxd5 {[%clk 0:03:13.3]} 12. Ne2 {[%clk
0:03:06]} 12... Bd6 {[%clk 0:03:06.3]} 13. Nf4 {[%clk 0:02:56.7]} 13... Bxf4
{[%clk 0:02:52.1]} 14. Bxf4 {[%clk 0:02:58.6]} 14... c5 {[%clk 0:02:51]} 15. c3
{[%clk 0:02:51.8]} 15... Bg6 {[%clk 0:02:45.4]} 16. Bg5 {[%clk 0:02:45.6]} 16...
Qb6 {[%clk 0:02:36.9]} 17. Bxf6 {[%clk 0:02:45.8]} 17... gxf6 {[%clk 0:02:37.9]}
18. Bxg6 {[%clk 0:02:38.8]} 18... hxg6 {[%clk 0:02:39.8]} 19. Qxd5 {[%clk
0:02:39.8]} 19... Qxb2 {[%clk 0:02:40.8]} 20. Qxc5 {[%clk 0:02:40.8]} 20... Rfc8
{[%clk 0:02:40]} 21. Qd4 {[%clk 0:02:03.6]} 21... Qxc3 {[%clk 0:02:35.4]} 22.
Rad1 {[%clk 0:02:04.2]} 22... Kg7 {[%clk 0:02:33.6]} 23. Qxc3 {[%clk 0:01:56.6]}
23... Rxc3 {[%clk 0:02:35.5]} 24. Rd4 {[%clk 0:01:52.1]} 24... Rb8 {[%clk
0:02:34.2]} 25. Rd2 {[%clk 0:01:32]} 25... Rb4 {[%clk 0:02:34.7]} 26. g3 {[%clk
0:01:28]} 26... f5 {[%clk 0:02:32.6]} 27. Kg2 {[%clk 0:01:28.1]} 27... g5 {[%clk
0:02:32.1]} 28. Rff2 {[%clk 0:01:29.1]} 28... Ra3 {[%clk 0:02:32.6]} 29. Rb2
{[%clk 0:01:29]} 29... Rba4 {[%clk 0:02:34]} 30. Rbc2 {[%clk 0:01:19.8]} 30...
Kg6 {[%clk 0:02:34.7]} 31. Rc6+ {[%clk 0:01:20.5]} 31... f6 {[%clk 0:02:35.8]}
32. Rcc2 {[%clk 0:01:22.4]} 32... f4 {[%clk 0:02:36.4]} 33. g4 {[%clk
0:01:21.2]} 33... Ra6 {[%clk 0:02:37]} 34. h3 {[%clk 0:01:21.5]} 34... f5 {[%clk
0:02:36.5]} 35. Rb2 {[%clk 0:01:21.5]} 35... fxg4 {[%clk 0:02:34.1]} 36. hxg4
{[%clk 0:01:21.7]} 36... Kf6 {[%clk 0:02:34.9]} 37. Rfe2 {[%clk 0:01:21.3]}
37... Re6 {[%clk 0:02:33.1]} 38. Rxe6+ {[%clk 0:01:14.6]} 38... Kxe6 {[%clk
0:02:35]} 39. Rd2 {[%clk 0:01:15.4]} 39... Ke5 {[%clk 0:02:32.4]} 40. Kf2 {[%clk
0:01:16]} 40... a5 {[%clk 0:02:33.9]} 41. Kg2 {[%clk 0:01:12.8]} 41... Rc3
{[%clk 0:02:34.8]} 42. Kf2 {[%clk 0:01:12.6]} 42... a4 {[%clk 0:02:36.1]} 43.
Re2+ {[%clk 0:01:11.5]} 43... Kd5 {[%clk 0:02:36.3]} 44. Rd2+ {[%clk 0:01:12.7]}
44... Kc4 {[%clk 0:02:36.3]} 45. Re2 {[%clk 0:01:11.2]} 45... Kb4 {[%clk
0:02:37.5]} 46. Rd2 {[%clk 0:00:48.9]} 46... Ka3 {[%clk 0:02:38.6]} 47. Kg2
{[%clk 0:00:47.9]} 47... Rc1 {[%clk 0:02:39.1]} 48. Kh3 {[%clk 0:00:18.5]} 48...
Rc5 {[%clk 0:02:36.1]} 49. Re2 {[%clk 0:00:18.2]} 49... Rd5 {[%clk 0:02:21.5]}
50. Re4 {[%clk 0:00:15.3]} 50... Rd3 {[%clk 0:02:20.9]} 51. Kg2 {[%clk
0:00:13.2]} 51... Rd2+ {[%clk 0:02:22]} 52. Kh3 {[%clk 0:00:14.6]} 52... Rf2
{[%clk 0:02:21]} 53. Re5 {[%clk 0:00:15.8]} 53... Rxf3+ {[%clk 0:02:22.3]} 54.
Kh2 {[%clk 0:00:17.3]} 54... Kxa2 {[%clk 0:02:21.5]} 55. Rxg5 {[%clk 0:00:18.3]}
55... a3 {[%clk 0:02:23]} 56. Ra5 {[%clk 0:00:18.8]} 56... Kb2 {[%clk
0:02:23.2]} 57. g5 {[%clk 0:00:18.2]} 57... a2 {[%clk 0:02:24.6]} 58. Rb5+
{[%clk 0:00:18.5]} 58... Rb3 {[%clk 0:02:25.2]} 0-1

[Event "*** Titled Tuesday Blitz"]
[Site "Chess.com"]
[Date "2019.07.02"]
[Round "2"]
[White "Sadikhov_Ulvi"]
[Black "Cruel_Yaro"]
[Result "1-0"]
[WhiteElo "2701"]
[BlackElo "2747"]
[TimeControl "180+2"]
[EndTime "13:23:53 PDT"]
[Termination "Sadikhov_Ulvi won by resignation"]

1. e4 {[%clk 0:03:00.6]} 1... e5 {[%clk 0:02:58.9]} 2. Nf3 {[%clk 0:03:01.5]}
2... Nc6 {[%clk 0:03:00.4]} 3. Bb5 {[%clk 0:03:02.3]} 3... a6 {[%clk 0:03:01.5]}
4. Ba4 {[%clk 0:03:03.1]} 4... Nf6 {[%clk 0:03:02.5]} 5. Nc3 {[%clk 0:03:04.4]}
5... d6 {[%clk 0:02:55.6]} 6. Bxc6+ {[%clk 0:03:00.5]} 6... bxc6 {[%clk
0:02:56.1]} 7. d4 {[%clk 0:03:01.8]} 7... exd4 {[%clk 0:02:53.3]} 8. Nxd4 {[%clk
0:03:02.4]} 8... c5 {[%clk 0:02:52.8]} 9. Nc6 {[%clk 0:03:03.2]} 9... Qd7 {[%clk
0:02:53.2]} 10. Na5 {[%clk 0:03:04.4]} 10... Be7 {[%clk 0:02:50.6]} 11. Qf3
{[%clk 0:02:59.5]} 11... Rb8 {[%clk 0:02:37.5]} 12. O-O {[%clk 0:02:53.9]} 12...
O-O {[%clk 0:02:36.1]} 13. Rd1 {[%clk 0:02:54.6]} 13... Ng4 {[%clk 0:02:05.9]}
14. Nd5 {[%clk 0:02:50.3]} 14... Bd8 {[%clk 0:02:06.7]} 15. Qg3 {[%clk
0:02:35.2]} 15... c6 {[%clk 0:01:47.1]} 16. Nc4 {[%clk 0:01:58.1]} 16... cxd5
{[%clk 0:01:45]} 17. Rxd5 {[%clk 0:01:58.4]} 17... Rb4 {[%clk 0:01:12.9]} 18.
Nxd6 {[%clk 0:01:47.7]} 18... Rd4 {[%clk 0:01:09.9]} 19. Rxd4 {[%clk 0:01:44.8]}
19... cxd4 {[%clk 0:01:10.4]} 20. Nf5 {[%clk 0:01:45.7]} 20... h5 {[%clk
0:00:59]} 21. h3 {[%clk 0:01:43]} 21... g6 {[%clk 0:00:32.4]} 22. hxg4 {[%clk
0:01:36.8]} 22... gxf5 {[%clk 0:00:33.1]} 23. gxf5+ {[%clk 0:01:36.7]} 23... Kh8
{[%clk 0:00:27.3]} 24. Qf3 {[%clk 0:00:54]} 24... f6 {[%clk 0:00:25.1]} 25.
Qxh5+ {[%clk 0:00:49]} 25... Qh7 {[%clk 0:00:26.4]} 26. Bh6 {[%clk 0:00:42]}
26... Rg8 {[%clk 0:00:25.1]} 27. Rd1 {[%clk 0:00:41.4]} 27... Be7 {[%clk
0:00:11.3]} 28. Qh4 {[%clk 0:00:19.5]} 28... Rd8 {[%clk 0:00:08.2]} 29. Rd3
{[%clk 0:00:19.8]} 29... Bb7 {[%clk 0:00:08.3]} 30. Rh3 {[%clk 0:00:20.6]} 30...
Kg8 {[%clk 0:00:07]} 31. Rg3+ {[%clk 0:00:19.8]} 31... Kh8 {[%clk 0:00:07]} 32.
Bg7+ {[%clk 0:00:19.8]} 1-0

[Event "*** Titled Tuesday Blitz"]
[Site "Chess.com"]
[Date "2019.07.02"]
[Round "2"]
[White "IwkooO"]
[Black "pedromartinez91"]
[Result "0-1"]
[WhiteElo "2527"]
[BlackElo "2438"]
[TimeControl "180+2"]
[EndTime "13:23:58 PDT"]
[Termination "pedromartinez91 won by resignation"]

1. e4 {[%clk 0:03:01.6]} 1... e6 {[%clk 0:03:01.1]} 2. d4 {[%clk 0:03:00.1]}
2... d5 {[%clk 0:03:02.4]} 3. Nd2 {[%clk 0:03:01.8]} 3... Nf6 {[%clk 0:03:03.2]}
4. e5 {[%clk 0:03:02.4]} 4... Ne4 {[%clk 0:03:04.5]} 5. Bd3 {[%clk 0:03:02.8]}
5... Nxd2 {[%clk 0:03:05.2]} 6. Bxd2 {[%clk 0:03:03.7]} 6... c5 {[%clk
0:03:07.1]} 7. c3 {[%clk 0:03:04.7]} 7... cxd4 {[%clk 0:03:08.7]} 8. cxd4 {[%clk
0:03:05.8]} 8... Qb6 {[%clk 0:03:10.6]} 9. Bc3 {[%clk 0:03:06]} 9... Bd7 {[%clk
0:03:12.5]} 10. Nf3 {[%clk 0:03:07]} 10... Bb5 {[%clk 0:03:14]} 11. O-O {[%clk
0:03:08.7]} 11... Bxd3 {[%clk 0:03:14.9]} 12. Qxd3 {[%clk 0:03:10.6]} 12... Qa6
{[%clk 0:03:15.5]} 13. Qe3 {[%clk 0:03:05.4]} 13... Nc6 {[%clk 0:03:16.6]} 14.
a3 {[%clk 0:03:06.3]} 14... Be7 {[%clk 0:03:16.8]} 15. Rfc1 {[%clk 0:03:07.5]}
15... Rc8 {[%clk 0:03:17.5]} 16. Qf4 {[%clk 0:03:05.3]} 16... O-O {[%clk
0:03:17.9]} 17. h4 {[%clk 0:03:05.7]} 17... Na5 {[%clk 0:03:17.2]} 18. h5 {[%clk
0:03:05]} 18... Nb3 {[%clk 0:03:11]} 19. Qg4 {[%clk 0:02:55.2]} 19... Nxc1
{[%clk 0:03:05.5]} 20. Rxc1 {[%clk 0:02:55.2]} 20... Qd3 {[%clk 0:03:06.7]} 21.
Re1 {[%clk 0:02:50.8]} 21... Qf5 {[%clk 0:03:07.4]} 22. Qxf5 {[%clk 0:02:46.3]}
22... exf5 {[%clk 0:03:09.3]} 23. Re3 {[%clk 0:02:46]} 23... Rc6 {[%clk
0:03:04.3]} 24. Kh2 {[%clk 0:02:43.2]} 24... g5 {[%clk 0:03:03.1]} 25. hxg6
{[%clk 0:02:44.2]} 25... hxg6 {[%clk 0:03:03.8]} 26. Ne1 {[%clk 0:02:44.7]}
26... Rfc8 {[%clk 0:03:00.2]} 27. Nc2 {[%clk 0:02:46]} 27... Kg7 {[%clk
0:02:55.3]} 28. Nb4 {[%clk 0:02:44]} 28... Bxb4 {[%clk 0:02:54.6]} 29. Bxb4
{[%clk 0:02:45.9]} 29... Rc2 {[%clk 0:02:54.7]} 30. Be7 {[%clk 0:02:46.6]} 30...
R8c6 {[%clk 0:02:43.2]} 31. Bf6+ {[%clk 0:02:40.9]} 31... Rxf6 {[%clk
0:02:44.2]} 32. exf6+ {[%clk 0:02:42.8]} 32... Kxf6 {[%clk 0:02:46.1]} 33. Rb3
{[%clk 0:02:44.7]} 33... b6 {[%clk 0:02:45.6]} 34. Kg3 {[%clk 0:02:45.2]} 34...
Rd2 {[%clk 0:02:43]} 35. Rb4 {[%clk 0:02:45.1]} 35... Ke6 {[%clk 0:02:44.1]} 36.
Kf3 {[%clk 0:02:39.2]} 36... Kd6 {[%clk 0:02:43.1]} 37. Ke3 {[%clk 0:02:40.1]}
37... Rc2 {[%clk 0:02:44.1]} 38. g3 {[%clk 0:02:40.1]} 38... Kc6 {[%clk
0:02:44.4]} 39. f3 {[%clk 0:02:37.7]} 39... a5 {[%clk 0:02:44.7]} 40. Rb3 {[%clk
0:02:38.9]} 40... b5 {[%clk 0:02:43.6]} 41. Kf4 {[%clk 0:02:39.1]} 41... a4
{[%clk 0:02:40.6]} 42. Rb4 {[%clk 0:02:38.9]} 42... Rc4 {[%clk 0:02:36.3]} 43.
Ke5 {[%clk 0:02:40.4]} 43... Rc2 {[%clk 0:02:32.6]} 44. Kf4 {[%clk 0:02:13.3]}
44... Rd2 {[%clk 0:02:28.4]} 45. Ke3 {[%clk 0:02:08.8]} 45... Rg2 {[%clk
0:02:28.8]} 46. Kf4 {[%clk 0:02:10.1]} 46... f6 {[%clk 0:02:29.4]} 47. g4 {[%clk
0:01:51.2]} 47... fxg4 {[%clk 0:02:27.6]} 48. fxg4 {[%clk 0:01:53.1]} 48... Rf2+
{[%clk 0:02:19.5]} 49. Kg3 {[%clk 0:01:48.1]} 49... Rc2 {[%clk 0:02:20.4]} 50.
Kf4 {[%clk 0:01:38.6]} 50... g5+ {[%clk 0:02:02.3]} 51. Kf5 {[%clk 0:01:31.3]}
51... Rf2+ {[%clk 0:02:03.3]} 52. Kg6 {[%clk 0:01:32.1]} 52... Rf4 {[%clk
0:02:04.9]} 53. Kh5 {[%clk 0:01:32.8]} 53... Rf2 {[%clk 0:02:00.8]} 54. Kg6
{[%clk 0:01:32.6]} 54... Rf3 {[%clk 0:02:01.6]} 55. Kh6 {[%clk 0:01:30.5]} 55...
Rf4 {[%clk 0:02:02.3]} 56. Kh5 {[%clk 0:01:31.1]} 56... Kb6 {[%clk 0:02:03.8]}
57. b3 {[%clk 0:01:22.1]} 57... axb3 {[%clk 0:02:02.5]} 58. a4 {[%clk
0:01:23.3]} 58... Ka5 {[%clk 0:02:01.3]} 59. Rxb5+ {[%clk 0:01:20.8]} 59... Kxa4
{[%clk 0:02:02]} 60. Rxd5 {[%clk 0:01:22.7]} 60... b2 {[%clk 0:02:00.4]} 61. Rd8
{[%clk 0:01:22.7]} 61... Kb3 {[%clk 0:02:00]} 62. Ra8 {[%clk 0:01:24.6]} 62...
b1=Q {[%clk 0:01:59.8]} 63. Rb8+ {[%clk 0:01:24.3]} 63... Kc2 {[%clk 0:02:01.3]}
64. Rxb1 {[%clk 0:01:25]} 64... Kxb1 {[%clk 0:02:03.2]} 65. d5 {[%clk
0:01:26.9]} 65... Rd4 {[%clk 0:02:04.4]} 66. Kg6 {[%clk 0:01:27.7]} 66... Rxg4
{[%clk 0:02:05]} 67. Kxf6 {[%clk 0:01:28.4]} 67... Rd4 {[%clk 0:02:06]} 0-1